fUSD/lending_fUSD_20240222
["ID","MTS","AMOUNT","RATE_DAILY","PERIOD"]
[314898407,1708625509371,-500.0,0.00033561,4]
[314898408,1708625509380,-500.0,0.00033561,4]
[314898409,1708625509389,-500.0,0.00033561,4]
[314898410,1708625509399,-577.69,0.00033561,4]
[314898411,1708625509409,-500.0,0.00033561,4]
[314898412,1708625509419,-1566.96,0.00033561,4]
[314898413,1708625509429,-500.0,0.00033561,4]
[314898414,1708625509439,-567.92,0.00033561,4]
[314898415,1708625509448,-885.89,0.00033561,4]
[314898416,1708625509457,-642.58,0.00033561,4]
[314898417,1708625509467,-851.67,0.00033561,4]
[314898418,1708625509478,-500.0,0.00033561,2]
[314898419,1708625509487,-500.0,0.00033561,4]
[314898420,1708625509497,-572.75,0.00033561,4]
[314898421,1708625509507,-583.46,0.00033561,4]
[314898422,1708625509516,-1131.89,0.00033561,4]
[314898423,1708625509525,-500.0,0.00033561,4]
[314898424,1708625509536,-500.0,0.00033561,4]
[314898425,1708625509546,-500.0,0.00033561,4]
[314898426,1708625509555,-500.0,0.00033561,4]
[314898427,1708625509565,-500.0,0.00033561,4]
[314898428,1708625509575,-568.65,0.00033561,4]
[314898429,1708625509584,-500.0,0.00033561,4]
[314898430,1708625509593,-500.0,0.00033561,4]
[314898431,1708625509604,-500.0,0.00033561,4]
[314898432,1708625509613,-1313.43,0.00033561,4]
[314898433,1708625509623,-3828.9,0.00033561,4]
[314898434,1708625509631,-500.0,0.00033561,4]
[314898435,1708625509641,-500.0,0.00033561,4]
[314898436,1708625509650,-1312.47,0.00033561,4]
[314898437,1708625509659,-500.0,0.00033561,4]
[314898438,1708625509669,-500.0,0.00033561,4]
[314898439,1708625509678,-637.56,0.00033561,4]
[314898440,1708625509687,-543.79918293,0.00033561,4]
[314898441,1708625509696,-500.0,0.00033561,4]
[314898442,1708625509705,-500.0,0.00033561,4]
[314898443,1708625509713,-500.0,0.00033561,4]
[314898444,1708625509723,-771.01,0.00033561,4]
[314898445,1708625509732,-670.32,0.00033561,4]
[314898446,1708625509742,-905.48,0.00033561,4]
[314898447,1708625509751,-587.38,0.00033561,4]
[314898448,1708625509760,-500.0,0.00033561,4]
[314898449,1708625509770,-500.0,0.00033561,4]
[314898450,1708625509779,-500.0,0.00033561,4]
[314898451,1708625509789,-500.0,0.00033561,4]
[314898452,1708625509799,-500.0,0.00033561,4]
[314898453,1708625509809,-500.0,0.00033561,4]
[314898454,1708625509819,-500.0,0.00033561,4]
[314898455,1708625509830,-500.0,0.00033561,4]
[314898456,1708625509841,-159.745135,0.00033561,7]
[314898457,1708625509850,-500.0,0.00033561,4]
[314898458,1708625509859,-500.0,0.00033561,4]
[314898459,1708625509869,-1115.25,0.00033561,4]
[314898460,1708625509882,-159.745135,0.00033561,7]
[314898461,1708625509891,-617.27,0.00033561,4]
[314898462,1708625509900,-1239.94,0.00033561,4]
[314898463,1708625509909,-500.0,0.00033561,4]
[314898464,1708625509919,-920.63,0.00033561,4]
[314898465,1708625509927,-799.98,0.00033561,4]
[314898466,1708625509936,-1030.29,0.00033561,4]
[314898467,1708625509945,-500.0,0.00033561,4]
[314898468,1708625509954,-500.0,0.00033561,4]
[314898469,1708625509963,-209.966881,0.00033561,7]
[314898470,1708625509973,-500.0,0.00033561,4]
[314898471,1708625509982,-209.966881,0.00033561,7]
[314898472,1708625509991,-500.0,0.00033561,4]
[314898473,1708625510000,-728.76,0.00033561,4]
[314898474,1708625510009,-741.55,0.00033561,4]
[314898475,1708625510018,-617.56,0.00033561,4]
[314898476,1708625510027,-538.23247337,0.00033561,4]
[314898477,1708625510036,-664.22,0.00033561,4]
[314898478,1708625510045,-511.5284422,0.00033561,4]
[314898479,1708625510054,-582.0,0.00033561,4]
[314898480,1708625510063,-500.0,0.00033561,4]
[314898481,1708625510072,-541.78,0.00033561,4]
[314898482,1708625510081,-764.35,0.00033561,4]
[314898483,1708625510091,-500.0,0.00033561,4]
[314898484,1708625510100,-500.0,0.00033561,4]
[314898485,1708625510109,-1242.24,0.00033561,4]
[314898486,1708625510118,-872.206723,0.00033561,7]
[314898487,1708625510128,-1041.1,0.00033561,4]
[314898488,1708625510136,-500.0,0.00033561,4]
[314898489,1708625510146,-1494.6,0.00033561,4]
[314898490,1708625510156,-500.0,0.00033561,4]
[314898491,1708625510165,-872.206723,0.00033561,7]
[314898492,1708625510174,-500.0,0.00033561,4]
[314898493,1708625510183,-983.44,0.00033561,4]
[314898494,1708625510379,-273.001206,0.00033561,7]
[314898495,1708625510406,-500.0,0.00033561,4]
[314898496,1708625510417,-871.52,0.00033561,4]
[314898497,1708625510427,-273.001206,0.00033561,7]
[314898498,1708625510439,-500.0,0.00033561,4]
[314898499,1708625510449,-937.84,0.00033561,4]
[314898500,1708625510458,-500.0,0.00033561,4]
[314898501,1708625510468,-940.94,0.00033561,4]
[314898502,1708625510478,-500.0,0.00033561,4]
[314898503,1708625510487,-500.0,0.00033561,4]
[314898504,1708625510497,-500.0,0.00033561,4]
[314898505,1708625510506,-1267.73,0.00033561,4]
[314898506,1708625510516,-988.42,0.00033561,4]
[314898507,1708625510525,-900.68,0.00033561,4]
[314898508,1708625510535,-598.66,0.00033561,4]
[314898509,1708625510544,-1407.88,0.00033561,4]
[314898510,1708625510553,-500.0,0.00033561,4]
[314898511,1708625510563,-500.0,0.00033561,4]
[314898512,1708625510572,-1015.51,0.00033561,4]
[314898513,1708625510583,-580.53584032,0.00033561,4]
[314898514,1708625510592,-500.0,0.00033561,4]
[314898515,1708625510601,-500.0,0.00033561,4]
[314898516,1708625510611,-500.0,0.00033561,4]
[314898517,1708625510620,-625.15,0.00033561,4]
[314898518,1708625510630,-824.67,0.00033561,4]
[314898519,1708625510639,-1044.83,0.00033561,4]
[314898520,1708625510648,-848.25,0.00033561,4]
[314898521,1708625510657,-715.27,0.00033561,4]
[314898522,1708625510666,-500.0,0.00033561,4]
[314898523,1708625510675,-500.0,0.00033561,4]
[314898524,1708625510686,-1782.080711,0.00033561,7]
[314898525,1708625510695,-500.0,0.00033561,4]
[314898526,1708625510705,-500.0,0.00033561,4]
[314898527,1708625510714,-1782.080711,0.00033561,7]
[314898528,1708625510724,-500.0,0.00033561,4]
[314898529,1708625510733,-979.83,0.00033561,4]
[314898530,1708625510742,-240.853509,0.00033561,7]
[314898531,1708625510751,-1292.8,0.00033561,4]
[314898532,1708625510760,-500.0,0.00033561,4]
[314898533,1708625510770,-520.97276046,0.00033561,4]
[314898534,1708625510779,-240.853509,0.00033561,7]
[314898535,1708625510788,-579.59,0.00033561,4]
[314898536,1708625510798,-651.21,0.00033561,4]
[314898537,1708625510806,-1259.45,0.00033561,4]
[314898538,1708625510816,-709.91,0.00033561,4]
[314898539,1708625510825,-150.0,0.00033561,4]
[314898540,1708625510834,-151.0,0.00033561,7]
[314898541,1708625510843,-500.0,0.00033561,4]
[314898542,1708625510853,-695.7,0.00033561,4]
[314898543,1708625510863,-972.69,0.00033561,4]
[314898544,1708625510874,-521.447789,0.00033561,7]
[314898545,1708625510886,-500.0,0.00033561,4]
[314898546,1708625510895,-500.0,0.00033561,4]
[314898547,1708625510905,-1106.66,0.00033561,4]
[314898548,1708625510913,-521.447789,0.00033561,7]
[314898549,1708625510923,-1263.76,0.00033561,4]
[314898550,1708625510932,-500.0,0.00033561,4]
[314898551,1708625510943,-500.0,0.00033561,4]
[314898552,1708625510953,-1595.37,0.00033561,4]
[314898553,1708625510962,-500.0,0.00033561,4]
[314898554,1708625510971,-535.25,0.00033561,4]
[314898555,1708625510981,-1321.09,0.00033561,4]
[314898556,1708625510990,-500.0,0.00033561,4]
[314898557,1708625510999,-841.52,0.00033561,4]
[314898558,1708625511009,-162.346877,0.00033561,2]
[314898559,1708625511018,-931.24,0.00033561,4]
[314898560,1708625511027,-593.4,0.00033561,4]
[314898561,1708625511037,-162.346877,0.00033561,2]
[314898562,1708625511047,-500.0,0.00033561,4]
[314898563,1708625511057,-1083.33,0.00033561,4]
[314898564,1708625511066,-1312.31,0.00033561,4]
[314898565,1708625511075,-1322.97,0.00033561,4]
[314898566,1708625511085,-231.24775988,0.00033561,4]
[314898567,1708625511094,-6861.46,0.00033561,4]
[314898568,1708625511104,-500.0,0.00033561,4]
[314898569,1708625511113,-500.0,0.00033561,4]
[314898570,1708625511124,-7508.74,0.00033561,4]
[314898571,1708625511134,-500.0,0.00033561,4]
[314898572,1708625511144,-500.0,0.00033561,4]
[314898573,1708625511153,-500.0,0.00033561,4]
[314898574,1708625511163,-308.051986,0.00033561,7]
[314898575,1708625511172,-2188.57,0.00033561,4]
[314898576,1708625511182,-640.5,0.00033561,4]
[314898577,1708625511192,-1521.19,0.00033561,4]
[314898578,1708625511201,-1556.17,0.00033561,2]
[314898579,1708625511210,-1367.32,0.00033561,4]
[314898580,1708625511220,-579.67,0.00033561,4]
[314898581,1708625511229,-500.0,0.00033561,4]
[314898582,1708625511239,-500.0,0.00033561,4]
[314898583,1708625511248,-151.0,0.00033561,7]
[314898584,1708625511257,-500.0,0.00033561,4]
[314898585,1708625511267,-308.051986,0.00033561,7]
[314898586,1708625511276,-3289.02,0.00033561,4]
[314898587,1708625511286,-500.0,0.00033561,4]
[314898588,1708625511295,-1435.75,0.00033561,4]
[314898589,1708625511304,-7764.94,0.00033561,4]
[314898590,1708625511314,-670.88,0.00033561,4]
[314898591,1708625511323,-1463.74,0.00033561,4]
[314898592,1708625511332,-905.05,0.00033561,4]
[314898593,1708625511342,-500.0,0.00033561,4]
[314898594,1708625511352,-500.0,0.00033561,4]
[314898595,1708625511362,-500.0,0.00033561,4]
[314898596,1708625511372,-500.0,0.00033561,4]
[314898597,1708625511381,-2618.09,0.00033561,4]
[314898598,1708625511391,-151.0,0.00033561,7]
[314898599,1708625511402,-1754.26,0.00033561,4]
[314898600,1708625511413,-230.005431,0.00033561,7]
[314898601,1708625511422,-571.38,0.00033561,4]
[314898602,1708625511432,-500.0,0.00033561,4]
[314898603,1708625511443,-230.005431,0.00033561,7]
[314898604,1708625511453,-1224.57,0.00033561,4]
[314898605,1708625511462,-1412.23,0.00033561,4]
[314898606,1708625511472,-1295.05,0.00033561,4]
[314898607,1708625511482,-2025.9,0.00033561,4]
[314898608,1708625511491,-500.0,0.00033561,4]
[314898609,1708625511501,-734.04,0.00033561,4]
[314898610,1708625511511,-16810.08,0.00033561,4]
[314898611,1708625511521,-500.0,0.00033561,4]
[314898612,1708625511530,-3953.01,0.00033561,4]
[314898613,1708625511540,-1357.88,0.00033561,4]
[314898614,1708625511549,-500.0,0.00033561,4]
[314898615,1708625511558,-500.0,0.00033561,4]
[314898616,1708625511568,-523.91,0.00033561,4]
[314898617,1708625511578,-500.0,0.00033561,4]
[314898618,1708625511588,-500.0,0.00033561,4]
[314898619,1708625511598,-156.888403,0.00033561,7]
[314898620,1708625511608,-1319.7,0.00033561,4]
[314898621,1708625511617,-500.0,0.00033561,4]
[314898622,1708625511627,-1306.91,0.00033561,4]
[314898623,1708625511637,-2921.05,0.00033561,4]
[314898624,1708625511647,-4012.02,0.00033561,4]
[314898625,1708625511656,-3520.12,0.00033561,4]
[314898626,1708625511665,-1203.69,0.00033561,4]
[314898627,1708625511674,-156.888403,0.00033561,7]
[314898628,1708625511684,-7422.46,0.00033561,4]
[314898629,1708625511694,-527.09309258,0.00033561,4]
[314898630,1708625511703,-2325.63,0.00033561,4]
[314898631,1708625511712,-595.22,0.00033561,4]
[314898632,1708625511721,-500.0,0.00033561,4]
[314898633,1708625511730,-500.0,0.00033561,4]
[314898634,1708625511740,-578.71,0.00033561,4]
[314898635,1708625511749,-896.84,0.00033561,4]
[314898636,1708625511760,-500.0,0.00033561,4]
[314898637,1708625511770,-802.17,0.00033561,4]
[314898638,1708625511779,-500.0,0.00033561,4]
[314898639,1708625511788,-579.72,0.00033561,4]
[314898640,1708625511798,-2641.23,0.00033561,4]
[314898641,1708625511809,-999.86,0.00033561,4]
[314898642,1708625511819,-3363.68,0.00033561,4]
[314898643,1708625511829,-2799.21,0.00033561,4]
[314898644,1708625511838,-500.0,0.00033561,4]
[314898645,1708625511848,-500.0,0.00033561,4]
[314898646,1708625511857,-500.0,0.00033561,4]
[314898647,1708625511868,-522.87,0.00033561,4]
[314898648,1708625511882,-879.41,0.00033561,4]
[314898649,1708625511894,-922.6,0.00033561,4]
[314898650,1708625511921,-2871.255775,0.00033561,7]
[314898651,1708625511940,-7827.29,0.00033561,4]
[314898652,1708625511960,-1225.83,0.00033561,4]
[314898653,1708625511980,-708.41,0.00033561,4]
[314898654,1708625511997,-2871.255775,0.00033561,7]
[314898655,1708625512017,-1375.3,0.00033561,4]
[314898656,1708625512033,-4523.83,0.00033561,4]
[314898657,1708625512055,-4862.62,0.00033561,4]
[314898658,1708625512072,-346.61,0.00033561,4]
[314898659,1708625512091,-735.21,0.00033561,4]
[314898660,1708625512113,-757.98,0.00033561,4]
[314898661,1708625512125,-500.0,0.00033561,4]
[314898662,1708625512142,-3270.53,0.00033561,4]
[314898663,1708625512159,-2130.22,0.00033561,4]
[314898664,1708625512175,-876.68,0.00033561,4]
[314898665,1708625512191,-3006.31,0.00033561,4]
[314898666,1708625512206,-358.319661,0.00033561,7]
[314898667,1708625512221,-151.0,0.00033561,7]
[314898668,1708625512235,-1542.31,0.00033561,4]
[314898669,1708625512251,-5087.25,0.00033561,4]
[314898670,1708625512268,-500.0,0.00033561,4]
[314898671,1708625512285,-869.35,0.00033561,4]
[314898672,1708625512299,-500.0,0.00033561,4]
[314898673,1708625512315,-1701.19,0.00033561,4]
[314898674,1708625512329,-1144.38,0.00033561,4]
[314898675,1708625512345,-358.319661,0.00033561,7]
[314898676,1708625512360,-500.0,0.00033561,4]
[314898677,1708625512375,-10191.48,0.00033561,4]
[314898678,1708625512390,-14297.7,0.00033561,4]
[314898679,1708625512405,-870.84,0.00033561,4]
[314898680,1708625512420,-567.42162171,0.00033561,4]
[314898681,1708625512435,-1739.37,0.00033561,4]
[314898682,1708625512451,-151.0,0.00033561,7]
[314898683,1708625512467,-500.0,0.00033561,4]
[314898684,1708625512481,-1219.49,0.00033561,4]
[314898685,1708625512495,-151.0,0.00033561,7]
[314898686,1708625512510,-500.0,0.00033561,4]
[314898687,1708625512524,-500.0,0.00033561,4]
[314898688,1708625512538,-662.36,0.00033561,4]
[314898689,1708625512553,-5320.7,0.00033561,4]
[314898690,1708625512568,-1389.1,0.00033561,4]
[314898691,1708625512583,-1178.0,0.00033561,4]
[314898692,1708625512597,-500.0,0.00033561,4]
[314898693,1708625512612,-4535.27,0.00033561,4]
[314898694,1708625512627,-1510.56,0.00033561,4]
[314898695,1708625512642,-580.85507856,0.00033561,4]
[314898696,1708625512657,-500.0,0.00033561,4]
[314898697,1708625512673,-151.0,0.00033561,7]
[314898698,1708625512689,-574.08,0.00033561,4]
[314898699,1708625512706,-913.43,0.00033561,4]
[314898700,1708625512721,-500.0,0.00033561,4]
[314898701,1708625512735,-957.57,0.00033561,4]
[314898702,1708625512749,-151.0,0.00033561,7]
[314898703,1708625512764,-1132.71,0.00033561,4]
[314898704,1708625512778,-1614.812565,0.00033561,7]
[314898705,1708625512793,-500.0,0.00033561,2]
[314898706,1708625512807,-1840.14,0.00033561,4]
[314898707,1708625512822,-182.999342,0.00033561,7]
[314898708,1708625512837,-182.999342,0.00033561,7]
[314898709,1708625512851,-1614.812565,0.00033561,7]
[314898710,1708625512866,-500.0,0.00033561,4]
[314898711,1708625512882,-500.0,0.00033561,4]
[314898712,1708625512896,-500.0,0.00033561,4]
[314898713,1708625512911,-1105.16,0.00033561,4]
[314898714,1708625512927,-8688.16,0.00033561,4]
[314898715,1708625512941,-856.33,0.00033561,4]
[314898716,1708625512956,-1035.38,0.00033561,4]
[314898717,1708625512971,-500.0,0.00033561,4]
[314898718,1708625512986,-597.54,0.00033561,4]
[314898719,1708625513000,-500.0,0.00033561,4]
[314898720,1708625513015,-500.0,0.00033561,4]
[314898721,1708625513031,-1031.07,0.00033561,4]
[314898722,1708625513046,-151.0,0.00033561,7]
[314898723,1708625513060,-607.73,0.00033561,4]
[314898724,1708625513075,-4152.62,0.00033561,4]
[314898725,1708625513090,-4573.59,0.00033561,4]
[314898726,1708625513105,-5220.29,0.00033561,4]
[314898727,1708625513120,-1750.52,0.00033561,4]
[314898728,1708625513134,-543.8,0.00033561,4]
[314898729,1708625513150,-740.42,0.00033561,4]
[314898730,1708625513165,-27929.76,0.00033561,4]
[314898731,1708625513181,-579.71,0.00033561,4]
[314898732,1708625513196,-500.0,0.00033561,4]
[314898733,1708625513212,-2617.91,0.00033561,4]
[314898734,1708625513227,-163.954301,0.00033561,7]
[314898735,1708625513241,-500.0,0.00033561,4]
[314898736,1708625513256,-769.4,0.00033561,4]
[314898737,1708625513276,-500.0,0.00033561,4]
[314898738,1708625513293,-163.954301,0.00033561,7]
[314898739,1708625513308,-500.0,0.00033561,4]
[314898740,1708625513324,-3104.43,0.00033561,4]
[314898741,1708625513339,-2557.13,0.00033561,4]
[314898742,1708625513354,-151.0,0.00033561,2]
[314898743,1708625513369,-763.62,0.00033561,4]
[314898744,1708625513384,-31733.49,0.00033561,4]
[314898745,1708625513401,-635.4,0.00033561,4]
[314898746,1708625513416,-1402.56,0.00033561,4]
[314898747,1708625513431,-10076.31,0.00033561,4]
[314898748,1708625513447,-500.0,0.00033561,4]
[314898749,1708625513462,-719.16,0.00033561,4]
[314898750,1708625513476,-500.0,0.00033561,4]
[314898751,1708625513491,-296.442057,0.00033561,2]
[314898752,1708625513505,-549.71,0.00033561,4]
[314898753,1708625513520,-815.24,0.00033561,4]
[314898754,1708625513534,-540.22,0.00033561,4]
[314898755,1708625513550,-10365.29,0.00033561,4]
[314898756,1708625513564,-1908.5,0.00033561,4]
[314898757,1708625513579,-500.0,0.00033561,4]
[314898758,1708625513593,-1930.81,0.00033561,4]
[314898759,1708625513608,-4645.8,0.00033561,4]
[314898760,1708625513624,-1831.86,0.00033561,4]
[314898761,1708625513640,-500.0,0.00033561,4]
[314898762,1708625513655,-1019.93,0.00033561,4]
[314898763,1708625513672,-500.0,0.00033561,4]
[314898764,1708625513687,-831.39,0.00033561,4]
[314898765,1708625513703,-1113.04,0.00033561,4]
[314898766,1708625513719,-2272.34,0.00033561,4]
[314898767,1708625513733,-19048.88,0.00033561,4]
[314898768,1708625513748,-703.63,0.00033561,4]
[314898769,1708625513764,-899.16,0.00033561,4]
[314898770,1708625513779,-4986.223576,0.00033561,7]
[314898771,1708625513794,-612.06,0.00033561,4]
[314898772,1708625513810,-1790.32,0.00033561,4]
[314898773,1708625513824,-3342.93,0.00033561,4]
[314898774,1708625513839,-500.0,0.00033561,4]
[314898775,1708625513854,-6652.12,0.00033561,4]
[314898776,1708625513871,-4986.223576,0.00033561,7]
[314898777,1708625513891,-1083.4,0.00033561,4]
[314898778,1708625513906,-316.339277,0.00033561,7]
[314898779,1708625513921,-3448.92,0.00033561,4]
[314898780,1708625513934,-500.0,0.00033561,4]
[314898781,1708625513950,-2397.11,0.00033561,4]
[314898782,1708625513965,-500.0,0.00033561,4]
[314898783,1708625513980,-566.02,0.00033561,4]
[314898784,1708625513995,-316.339277,0.00033561,7]
[314898785,1708625514009,-588.46,0.00033561,4]
[314898786,1708625514024,-668.81,0.00033561,4]
[314898787,1708625514040,-504.65,0.00033561,4]
[314898788,1708625514055,-1569.54,0.00033561,4]
[314898789,1708625514070,-890.14,0.00033561,4]
[314898790,1708625514084,-500.0,0.00033561,4]
[314898791,1708625514099,-2839.46,0.00033561,4]
[314898792,1708625514114,-151.0,0.00033561,7]
[314898793,1708625514128,-500.0,0.00033561,4]
[314898794,1708625514144,-500.0,0.00033561,4]
[314898795,1708625514155,-1599.27,0.00033561,4]
[314898796,1708625514165,-12262.15,0.00033561,4]
[314898797,1708625514175,-500.0,0.00033561,4]
[314898798,1708625514184,-603.26,0.00033561,4]
[314898799,1708625514536,-684.48,0.00033561,4]
[314898800,1708625514559,-4428.36,0.00033561,4]
[314898801,1708625514578,-500.0,0.00033561,4]
[314898802,1708625514587,-2710.14,0.00033561,4]
[314898803,1708625514596,-11511.86,0.00033561,4]
[314898804,1708625514606,-13857.62,0.00033561,4]
[314898805,1708625514616,-935.58,0.00033561,4]
[314898806,1708625514625,-1092.92,0.00033561,4]
[314898807,1708625514635,-500.0,0.00033561,4]
[314898808,1708625514645,-1594.69,0.00033561,4]
[314898809,1708625514655,-500.0,0.00033561,4]
[314898810,1708625514664,-500.0,0.00033561,4]
[314898811,1708625514673,-543.61,0.00033561,4]
[314898812,1708625514683,-787.78,0.00033561,4]
[314898813,1708625514693,-500.0,0.00033561,4]
[314898814,1708625514702,-12927.16,0.00033561,4]
[314898815,1708625514712,-500.0,0.00033561,4]
[314898816,1708625514722,-952.32,0.00033561,4]
[314898817,1708625514731,-500.0,0.00033561,4]
[314898818,1708625514741,-1397.23,0.00033561,4]
[314898819,1708625514750,-15657.06,0.00033561,4]
[314898820,1708625514759,-734.09,0.00033561,4]
[314898821,1708625514769,-500.0,0.00033561,4]
[314898822,1708625514778,-500.0,0.00033561,4]
[314898823,1708625514788,-638.64,0.00033561,4]
[314898824,1708625514797,-500.0,0.00033561,4]
[314898825,1708625514806,-500.0,0.00033561,4]
[314898826,1708625514816,-500.0,0.00033561,4]
[314898827,1708625514826,-1622.99,0.00033561,4]
[314898828,1708625514835,-2266.68,0.00033561,4]
[314898829,1708625514845,-2464.49,0.00033561,4]
[314898830,1708625514853,-1572.14,0.00033561,4]
[314898831,1708625514863,-500.0,0.00033561,4]
[314898832,1708625514873,-1658.88,0.00033561,4]
[314898833,1708625514885,-802.87,0.00033561,4]
[314898834,1708625514894,-1524.56,0.00033561,4]
[314898835,1708625514904,-631.35,0.00033561,4]
[314898836,1708625514915,-500.0,0.00033561,4]
[314898837,1708625514924,-500.0,0.00033561,4]
[314898838,1708625514933,-500.0,0.00033561,4]
[314898839,1708625514944,-500.0,0.00033561,4]
[314898840,1708625514954,-795.52,0.00033561,4]
[314898841,1708625514963,-1000.0,0.00033561,7]
[314898842,1708625514974,-6459.32,0.00033561,4]
[314898843,1708625514984,-3708.97,0.00033561,4]
[314898844,1708625514994,-1063.1,0.00033561,4]
[314898845,1708625515004,-833.35,0.00033561,4]
[314898846,1708625515015,-8548.5,0.00033561,4]
[314898847,1708625515025,-619.16,0.00033561,4]
[314898848,1708625515035,-8589.16,0.00033561,4]
[314898849,1708625515045,-725.96,0.00033561,4]
[314898850,1708625515054,-559.93,0.00033561,4]
[314898851,1708625515064,-1242.959557,0.00033561,7]
[314898852,1708625515073,-1242.959557,0.00033561,7]
[314898853,1708625515083,-500.0,0.00033561,4]
[314898854,1708625515093,-500.0,0.00033561,4]
[314898855,1708625515102,-885.04,0.00033561,4]
[314898856,1708625515112,-1242.959557,0.00033561,7]
[314898857,1708625515121,-695.88,0.00033561,4]
[314898858,1708625515130,-1242.959557,0.00033561,7]
[314898859,1708625515140,-151.0,0.00033561,7]
[314898860,1708625515149,-151.0,0.00033561,7]
[314898861,1708625515158,-500.0,0.00033561,4]
[314898862,1708625515168,-1152.72,0.00033561,4]
[314898863,1708625515177,-296.164536,0.00033561,7]
[314898864,1708625515186,-1529.13,0.00033561,4]
[314898865,1708625515196,-3657.93,0.00033561,4]
[314898866,1708625515206,-1521.37,0.00033561,4]
[314898867,1708625515215,-500.0,0.00033561,4]
[314898868,1708625515225,-1371.815247,0.00033561,7]
[314898869,1708625515234,-1371.815247,0.00033561,7]
[314898870,1708625515244,-649.89,0.00033561,4]
[314898871,1708625515253,-1012.78,0.00033561,4]
[314898872,1708625515262,-500.0,0.00033561,4]
[314898873,1708625515272,-1371.815247,0.00033561,7]
[314898874,1708625515282,-1371.815247,0.00033561,7]
[314898875,1708625515291,-500.0,0.00033561,4]
[314898876,1708625515300,-982.4,0.00033561,4]
[314898877,1708625515310,-1281.51,0.00033561,4]
[314898878,1708625515319,-548.38,0.00033561,4]
[314898879,1708625515328,-757.3,0.00033561,4]
[314898880,1708625515338,-500.0,0.00033561,4]
[314898881,1708625515348,-753.97,0.00033561,4]
[314898882,1708625515358,-2156.76,0.00033561,4]
[314898883,1708625515368,-2549.51,0.00033561,4]
[314898884,1708625515377,-296.963224,0.00033561,7]
[314898885,1708625515387,-296.963224,0.00033561,7]
[314898886,1708625515397,-2213.41,0.00033561,4]
[314898887,1708625515407,-500.0,0.00033561,4]
[314898888,1708625515417,-4381.7,0.00033561,4]
[314898889,1708625515427,-296.963224,0.00033561,7]
[314898890,1708625515436,-5006.44,0.00033561,4]
[314898891,1708625515446,-500.0,0.00033561,4]
[314898892,1708625515457,-500.0,0.00033561,4]
[314898893,1708625515466,-296.963224,0.00033561,7]
[314898894,1708625515476,-1083.67,0.00033561,4]
[314898895,1708625515486,-411.757149,0.00033561,7]
[314898896,1708625515496,-411.757149,0.00033561,7]
[314898897,1708625515505,-2631.91,0.00033561,4]
[314898898,1708625515515,-500.0,0.00033561,4]
[314898899,1708625515524,-411.757149,0.00033561,7]
[314898900,1708625515534,-647.141138,0.00033561,7]
[314898901,1708625515544,-411.757149,0.00033561,7]
[314898902,1708625515554,-647.141138,0.00033561,7]
[314898903,1708625515563,-928.82,0.00033561,4]
[314898904,1708625515573,-1050.11,0.00033561,4]
[314898905,1708625515582,-988.3,0.00033561,4]
[314898906,1708625515591,-553.85,0.00033561,4]